bitfinex-derivatives/quotes_BTCF0:USTF0_20260314
["timestamp","ask_amount","ask_price","bid_price","bid_amount"]
[1773469916096,0.043392,70757.0,70749.0,0.0014]
[1773469917099,0.045392,70757.0,70749.0,0.0014]
[1773469917995,0.13367007,70773.0,70750.0,0.1353768]
[1773469918191,0.07382934,70770.0,70750.0,0.1353768]
[1773469918691,0.001,70757.0,70750.0,0.1353768]
[1773469919596,0.042389,70762.0,70750.0,0.1777728]
[1773469920404,0.001,70757.0,70750.0,0.1777728]
[1773469921107,0.043389,70762.0,70750.0,0.1777728]
[1773469923505,0.042389,70762.0,70750.0,0.1777728]
[1773469924406,0.04239,70761.0,70750.0,0.1353768]
[1773469928202,0.07382934,70770.0,70752.0,0.1353768]
[1773469928600,0.042388,70763.0,70752.0,0.1353768]
[1773469929708,0.043388,70763.0,70752.0,0.1353768]
[1773469931103,0.001,70763.0,70752.0,0.1777708]
[1773469931308,0.043388,70763.0,70753.0,0.1353768]
[1773469932106,0.042388,70763.0,70753.0,0.1353768]
[1773469933001,0.043388,70763.0,70753.0,0.1353768]
[1773469940711,0.07376133,70780.0,70757.0,0.1353768]
[1773469940907,0.07376133,70780.0,70759.0,0.1353768]
[1773469941107,0.07376133,70780.0,70761.0,0.12352446]
[1773469941309,0.0007064,70781.0,70761.0,0.12352446]
[1773469941610,0.042383,70773.0,70762.0,0.12352446]
[1773469942305,0.001,70780.0,70763.0,0.12352446]
[1773469943414,0.0007064,70781.0,70763.0,0.12352446]
[1773469943611,0.042393,70756.0,70753.0,0.2539249]
[1773469943810,0.13127662,70768.0,70745.0,0.12352446]
[1773469944113,0.042392,70758.0,70745.0,0.12352446]
[1773469944813,0.042392,70758.0,70753.0,0.002]
[1773469945014,0.042392,70758.0,70754.0,0.0014]
[1773469946112,0.042391,70759.0,70754.0,0.0014]
[1773469947414,0.001,70758.0,70754.0,0.0014]
[1773469948110,0.042392,70757.0,70755.0,0.0014]
[1773469948319,0.042392,70757.0,70756.0,0.0014]
[1773469950016,0.042392,70757.0,70756.0,0.0034]
[1773469950215,0.042392,70757.0,70756.0,0.0014]
[1773469950818,0.042392,70757.0,70756.0,0.0034]
[1773469951013,0.042392,70757.0,70756.0,0.0014]
[1773469956832,0.042392,70757.0,70745.0,0.12352446]
[1773469957130,0.042392,70757.0,70746.0,0.12492446]
[1773469959029,0.042392,70757.0,70746.0,0.12692446]
[1773469959431,0.042392,70757.0,70746.0,0.12492446]
[1773469959622,0.042392,70757.0,70746.0,0.12692446]
[1773469959824,0.042397,70749.0,70746.0,4.6e-07]
[1773469960023,0.042397,70749.0,70747.0,0.0014]
[1773469960225,0.042396,70751.0,70748.0,0.0014]
[1773469960427,0.042396,70751.0,70738.0,0.12352446]
[1773469960732,0.07376133,70750.0,70746.0,0.002]
[1773469960932,0.042396,70751.0,70747.0,0.0014]
[1773469962332,0.043396,70751.0,70747.0,0.0014]
[1773469963736,0.002,70751.0,70734.0,0.12368961]
[1773469963929,0.042398,70748.0,70736.0,0.042404]
[1773469964234,0.11615733,70750.0,70737.0,0.12352446]
[1773469964429,0.11615733,70750.0,70739.0,0.12352446]
[1773469966431,0.11615733,70750.0,70739.0,0.12552446]
[1773469967838,0.11615733,70750.0,70739.0,0.12752446]
[1773469969635,0.042396,70750.0,70739.0,0.12752446]
[1773469969828,0.11615733,70750.0,70739.0,0.12752446]
[1773469971041,0.07376133,70750.0,70740.0,0.13493848]
[1773469971236,0.13127662,70759.0,70739.0,0.004]
[1773469972534,0.042397,70749.0,70739.0,0.002]
[1773469973235,0.042397,70748.0,70739.0,0.002]
[1773469973432,0.042397,70748.0,70732.0,0.13397506]
[1773469973433,0.13131967,70748.0,70727.0,0.0014]
[1773469973738,0.042406,70734.0,70728.0,0.0014]
[1773469973943,0.042406,70734.0,70729.0,0.0014]
[1773469974138,0.042406,70734.0,70730.0,0.0014]
[1773469974440,0.042406,70734.0,70720.0,0.13397506]
[1773469974636,0.00012119,70733.0,70722.0,0.13397506]
[1773469974835,0.00012119,70733.0,70723.0,0.043812]
[1773469975032,0.00012119,70733.0,70723.0,0.17778706]
[1773469975239,0.00012119,70733.0,70724.0,0.13397506]
[1773469976834,0.042407,70732.0,70717.0,0.13397506]
[1773469977038,0.00012119,70733.0,70718.0,0.0014]
[1773469977242,0.205081,70750.0,70724.0,0.13397506]
[1773469977440,0.042403,70739.0,70725.0,0.13397506]
[1773469977641,0.042403,70739.0,70725.0,0.17638506]
[1773469977935,0.042403,70739.0,70726.0,0.13537506]
[1773469978141,4.396e-05,70738.0,70731.0,0.13397506]
[1773469978444,0.042399,70746.0,70727.0,0.13397506]
[1773469979546,0.044399,70746.0,70727.0,0.13397506]
[1773469980050,0.044399,70746.0,70732.0,0.13397506]
[1773469980249,0.042399,70746.0,70733.0,0.13537506]
[1773469980443,0.044399,70746.0,70733.0,0.13537506]
[1773469980643,0.0424,70743.0,70733.0,0.13537506]
[1773469980842,0.001,70738.0,70733.0,0.0014]
[1773469981648,0.0424,70744.0,70733.0,0.0014]
[1773469982651,0.001,70738.0,70733.0,0.0014]
[1773469983955,0.0424,70744.0,70733.0,0.0014]
[1773469984454,0.0424,70743.0,70733.0,0.0014]
[1773469984655,0.205081,70743.0,70715.0,0.13397506]
[1773469984850,0.042402,70741.0,70726.0,0.04241]
[1773469985059,0.0424,70743.0,70729.0,0.042408]
[1773469985256,0.001,70744.0,70730.0,0.13537506]
[1773469985452,0.001,70744.0,70732.0,0.13397506]
[1773469985654,0.001,70744.0,70733.0,0.0014]
[1773469985862,0.07376133,70750.0,70733.0,0.0014]
[1773469986063,0.0424,70744.0,70733.0,0.0014]
[1773469986263,0.0424,70744.0,70733.0,0.0024]
[1773469986766,0.042401,70743.0,70733.0,0.0024]
[1773469986962,0.042401,70743.0,70733.0,0.0014]
[1773469987868,0.042401,70741.0,70733.0,0.0014]
[1773469988855,0.042402,70740.0,70733.0,0.0014]
[1773469990463,0.042402,70740.0,70733.0,0.0024]
[1773469992270,0.043402,70740.0,70733.0,0.0024]
[1773469992962,0.042402,70740.0,70733.0,0.0024]
[1773469993163,0.044402,70740.0,70733.0,0.0024]
[1773469993764,0.044402,70740.0,70728.0,0.042409]
[1773469993765,0.042402,70740.0,70728.0,0.042409]
[1773469993966,0.042405,70736.0,70729.0,0.0014]
[1773469994170,0.042405,70736.0,70730.0,0.0014]
[1773469994363,0.042405,70736.0,70731.0,0.0014]
[1773469994560,0.042405,70736.0,70732.0,0.0014]
[1773469994769,0.042405,70735.0,70733.0,0.0014]
[1773469995071,0.042405,70735.0,70734.0,0.0014]
[1773469995367,0.042406,70734.0,70721.0,0.042413]
[1773469995559,0.042407,70733.0,70722.0,0.0014]
[1773469995762,0.042407,70733.0,70723.0,0.0014]
[1773469995967,0.042407,70733.0,70724.0,0.0014]
[1773469996867,0.042407,70732.0,70724.0,0.0014]
[1773469997973,0.042407,70732.0,70724.0,0.0024]
[1773469999177,0.042407,70732.0,70720.0,0.042414]
[1773469999472,0.042407,70732.0,70721.0,0.0014]
[1773469999774,0.042407,70732.0,70720.0,0.042414]
[1773469999974,0.042407,70732.0,70724.0,0.001]
[1773470000364,0.042407,70732.0,70725.0,0.0014]
[1773470002766,0.042407,70732.0,70725.0,0.0024]
[1773470006273,0.13131967,70736.0,70717.0,0.042416]
[1773470006480,0.042408,70731.0,70718.0,0.043815]
[1773470007870,0.042408,70730.0,70718.0,0.043815]
[1773470008579,0.042408,70730.0,70719.0,0.0014]
[1773470008972,0.042408,70730.0,70718.0,0.042415]
[1773470009279,0.042408,70730.0,70719.0,0.0014]
[1773470009779,0.042408,70730.0,70719.0,0.0024]
[1773470010476,0.042408,70730.0,70719.0,0.001]
[1773470010675,0.042408,70730.0,70720.0,0.0014]
[1773470011182,0.042408,70730.0,70721.0,0.0014]
[1773470011679,0.042409,70729.0,70722.0,0.0014]
[1773470012074,0.042409,70729.0,70723.0,0.0014]
[1773470012274,0.13160464,70734.0,70719.0,0.001]
[1773470012275,0.042408,70731.0,70724.0,0.0014]
[1773470012481,0.042408,70731.0,70718.0,0.042415]
[1773470012672,0.042408,70731.0,70720.0,0.001]
[1773470013381,0.042408,70731.0,70719.0,0.0014]
[1773470013571,0.042408,70731.0,70724.0,0.001]
[1773470013776,0.042408,70731.0,70725.0,0.0014]
[1773470017290,0.042408,70731.0,70725.0,0.0024]
[1773470017583,0.042407,70732.0,70725.0,0.0024]
[1773470017780,0.042408,70731.0,70725.0,0.0024]
[1773470017980,0.042408,70731.0,70726.0,0.0014]
[1773470021078,0.042408,70731.0,70726.0,0.0024]
[1773470021685,0.042408,70731.0,70727.0,0.0014]
[1773470021879,0.042408,70731.0,70728.0,0.0014]
[1773470022082,0.042408,70731.0,70729.0,0.0014]
[1773470022476,0.042408,70731.0,70730.0,0.0014]
[1773470023977,0.042408,70731.0,70727.0,0.001]
[1773470024181,0.042408,70731.0,70728.0,0.0014]
[1773470024982,0.042406,70733.0,70728.0,0.0014]
[1773470025284,0.042407,70732.0,70728.0,0.0014]
[1773470025481,0.042407,70732.0,70729.0,0.0014]
[1773470025676,0.042407,70732.0,70730.0,0.0014]
[1773470025876,0.042407,70732.0,70731.0,0.0014]
[1773470027682,0.042407,70732.0,70731.0,0.0024]
[1773470027889,0.042407,70732.0,70731.0,0.0014]
[1773470028981,0.042408,70731.0,70727.0,0.0014]
[1773470029284,0.042412,70723.0,70709.0,0.04242]
[1773470029488,0.12244541,70726.0,70705.0,0.31728862]
[1773470029489,0.12244541,70726.0,70710.0,0.0014]
[1773470029889,0.042413,70722.0,70710.0,0.0014]
[1773470030383,0.042414,70721.0,70710.0,0.0014]
[1773470030788,0.19627239,70720.0,70711.0,0.0014]
[1773470030990,0.19627239,70720.0,70712.0,0.0014]
[1773470031187,0.19627239,70720.0,70701.0,0.042425]
[1773470031491,0.12244541,70720.0,70702.0,0.0014]
[1773470031889,0.19627239,70720.0,70702.0,0.0014]
[1773470032190,0.042416,70716.0,70702.0,0.0014]
[1773470033089,0.042415,70718.0,70703.0,0.042424]
[1773470033394,0.042416,70717.0,70703.0,0.042424]
[1773470034993,0.043416,70717.0,70703.0,0.042424]
[1773470035392,0.001,70716.0,70703.0,0.042424]
[1773470035592,0.043417,70716.0,70703.0,0.042424]
[1773470036096,0.042417,70716.0,70702.0,0.0014]
[1773470036395,0.042417,70715.0,70702.0,0.043824]
[1773470036789,0.043416,70717.0,70703.0,0.13025535]
[1773470036992,0.001,70716.0,70703.0,0.13025535]
[1773470037300,0.042417,70715.0,70703.0,0.13025535]
[1773470038692,0.001,70716.0,70703.0,0.17267935]
[1773470039793,0.042417,70715.0,70702.0,0.043824]
[1773470040098,0.001,70716.0,70703.0,0.042424]
[1773470040500,0.043417,70716.0,70703.0,0.042424]
[1773470040691,0.042417,70716.0,70703.0,0.042424]
[1773470040897,0.042417,70715.0,70702.0,0.0014]
[1773470041094,0.042418,70714.0,70702.0,0.0014]
[1773470041802,0.042417,70716.0,70702.0,0.043824]
[1773470043303,0.042417,70716.0,70703.0,0.042424]
[1773470043697,0.07382698,70713.0,70697.0,0.31745292]
[1773470043995,0.042422,70707.0,70698.0,0.0014]
[1773470044192,0.12156952,70719.0,70699.0,0.0014]
[1773470044407,0.12156952,70719.0,70700.0,0.0014]
[1773470044599,0.12156952,70719.0,70701.0,0.0014]
[1773470044798,0.07382698,70720.0,70701.0,0.0014]
[1773470044799,0.04242,70710.0,70701.0,0.0014]
[1773470045000,0.00015948,70709.0,70701.0,0.0014]
[1773470045598,0.00015948,70709.0,70664.0,0.005]
[1773470045599,0.12156952,70689.0,70664.0,0.005]
[1773470045806,0.042412,70723.0,70650.0,0.69073827]
[1773470045807,0.00012706,70688.0,70677.0,0.042439]
[1773470046006,0.04243,70693.0,70678.0,0.13025535]
[1773470046302,0.1505294,70720.0,70674.0,0.00015828]
[1773470046303,0.042425,70701.0,70684.0,0.17269035]
[1773470046507,0.042427,70699.0,70685.0,0.0014]
[1773470047195,0.04062222,70720.0,70677.0,0.13025535]
[1773470047196,0.04202222,70720.0,70677.0,0.13025535]
[1773470047396,0.07382698,70700.0,70679.0,0.13025535]
[1773470047605,0.001,70701.0,70681.0,0.13025535]
[1773470047803,0.042428,70698.0,70682.0,0.042437]
[1773470048006,0.12156952,70699.0,70678.0,0.13165535]
[1773470048306,0.042429,70695.0,70678.0,0.13165535]
[1773470049108,0.042429,70695.0,70679.0,0.042438]
[1773470049508,0.07382698,70689.0,70649.0,0.42339376]
[1773470049708,0.12156952,70678.0,70656.0,0.13025535]
[1773470049917,0.04244,70678.0,70661.0,0.13025535]
[1773470050208,0.042437,70683.0,70664.0,0.13025535]
[1773470050510,0.00011008,70682.0,70664.0,0.13025535]
[1773470050902,0.042438,70681.0,70667.0,0.13025535]
[1773470051108,0.001,70678.0,70667.0,0.13025535]
[1773470052507,0.12156952,70677.0,70665.0,0.042447]
[1773470052714,0.042441,70675.0,70659.0,0.04245]
[1773470053013,0.042441,70675.0,70660.0,0.0014]
[1773470053214,0.043439,70678.0,70662.0,0.13025535]
[1773470053511,0.042438,70680.0,70664.0,0.042448]
[1773470053709,0.00111008,70682.0,70666.0,0.13025535]
[1773470053912,0.002,70677.0,70667.0,0.043845]
[1773470054602,0.001,70678.0,70667.0,0.043845]
[1773470054807,0.002,70678.0,70671.0,0.042443]
[1773470055008,0.00011008,70682.0,70671.0,0.042443]
[1773470055209,0.00011008,70682.0,70668.0,0.17270035]
[1773470055415,0.00011008,70682.0,70668.0,0.042445]
[1773470055806,0.001,70677.0,70668.0,0.042445]
[1773470056007,0.00011008,70682.0,70667.0,0.13165535]
[1773470056617,0.001,70677.0,70667.0,0.13165535]
[1773470057407,0.00211008,70682.0,70667.0,0.13165535]
[1773470057916,0.042429,70695.0,70679.0,0.042438]
[1773470058218,0.042428,70696.0,70682.0,0.042437]
[1773470058414,0.07392917,70700.0,70683.0,0.13165535]
[1773470058615,0.042428,70697.0,70684.0,0.0014]
[1773470058809,0.07392917,70700.0,70684.0,0.0014]
[1773470059010,0.04243,70694.0,70684.0,0.0014]
[1773470060616,0.12256952,70696.0,70684.0,0.0014]
[1773470060926,0.042431,70692.0,70685.0,0.00144]
[1773470061324,0.042432,70691.0,70686.0,0.00144]
[1773470061519,0.12441249,70693.0,70673.0,0.042442]
[1773470061718,0.12441249,70693.0,70674.0,0.00144]
[1773470061916,0.042433,70689.0,70674.0,0.043881]
[1773470062222,0.12441249,70687.0,70675.0,0.00144]
[1773470062425,0.12441249,70687.0,70676.0,0.00144]
[1773470063126,0.042436,70684.0,70677.0,0.00144]
[1773470063320,0.042436,70684.0,70678.0,0.00144]
[1773470063522,0.16684849,70684.0,70670.0,0.042444]
[1773470063722,0.16684849,70684.0,70671.0,0.043883]
[1773470064022,0.042436,70684.0,70671.0,0.043883]
[1773470064228,0.002,70687.0,70677.0,0.04244]
[1773470064422,0.002,70687.0,70678.0,0.00144]
[1773470064621,0.12441249,70698.0,70683.0,0.042436]
[1773470064622,0.16684049,70698.0,70683.0,0.042436]
[1773470064819,0.042428,70697.0,70683.0,0.042436]
[1773470065926,0.042429,70696.0,70681.0,0.042437]
[1773470066229,0.16683949,70698.0,70683.0,0.042436]
[1773470066431,0.042428,70697.0,70683.0,0.042436]
[1773470066731,0.042428,70697.0,70684.0,0.00144]
[1773470066732,0.043428,70697.0,70684.0,0.00144]
[1773470067226,0.042429,70695.0,70684.0,0.00144]
[1773470067629,0.043428,70697.0,70684.0,0.00144]
[1773470068532,0.042429,70696.0,70684.0,0.00144]
[1773470069227,0.042429,70695.0,70684.0,0.00144]
[1773470070632,0.16684249,70694.0,70684.0,0.00144]
[1773470071420,0.04243,70693.0,70684.0,0.00144]
[1773470071933,0.04243,70693.0,70685.0,0.00144]
[1773470072328,0.04243,70693.0,70686.0,0.00144]
[1773470072528,0.04243,70693.0,70680.0,0.042438]
[1773470072829,0.04243,70693.0,70681.0,0.00144]
[1773470073027,0.04243,70693.0,70672.0,0.13395107]
[1773470073231,0.16684249,70693.0,70673.0,0.00144]
[1773470073433,0.16784249,70693.0,70673.0,0.00144]
[1773470073732,0.16784249,70693.0,70681.0,0.042437]
[1773470073934,0.04343,70693.0,70682.0,0.00144]
[1773470074236,0.12541249,70693.0,70683.0,0.00144]
[1773470074436,0.12541249,70693.0,70684.0,0.00144]
[1773470074638,0.12641249,70693.0,70684.0,0.00144]
[1773470074931,0.042434,70687.0,70685.0,0.00144]
[1773470075236,0.12441249,70686.0,70665.0,0.13395107]
[1773470075429,0.042434,70687.0,70667.0,0.13395107]
[1773470076031,0.042434,70687.0,70675.0,0.042441]
[1773470076239,0.042434,70687.0,70676.0,0.00144]
[1773470076437,0.042433,70689.0,70676.0,0.00144]
[1773470076628,0.001,70693.0,70682.0,0.042437]
[1773470076935,0.001,70693.0,70683.0,0.00144]
[1773470077137,0.001,70693.0,70684.0,0.00144]
[1773470077434,0.001,70693.0,70685.0,0.00144]
[1773470077635,0.001,70689.0,70685.0,0.00144]
[1773470078033,0.001,70693.0,70685.0,0.00144]
[1773470078741,0.002,70693.0,70685.0,0.00144]
[1773470079541,0.001,70693.0,70685.0,0.00144]
[1773470079737,0.002,70693.0,70685.0,0.00144]
[1773470080441,0.001,70693.0,70685.0,0.00144]
[1773470080644,0.002,70693.0,70685.0,0.00144]
[1773470082038,0.12441249,70690.0,70676.0,0.00144]
[1773470082237,0.042435,70685.0,70677.0,0.00144]
[1773470082445,0.042435,70685.0,70678.0,0.00144]
[1773470082736,0.042436,70684.0,70678.0,0.00144]
[1773470083248,0.042437,70683.0,70678.0,0.00144]
[1773470083539,0.12441249,70678.0,70657.0,0.13395107]
[1773470083741,8.544e-05,70682.0,70659.0,0.13395107]
[1773470083939,8.544e-05,70682.0,70651.0,0.47485622]
[1773470083940,0.07392917,70680.0,70660.0,0.04389]
[1773470084237,8.544e-05,70682.0,70651.0,0.4515106]
[1773470084238,0.07392917,70670.0,70651.0,0.4515106]
[1773470084444,0.19834166,70670.0,70654.0,0.042453]
[1773470084634,0.19834166,70670.0,70655.0,0.00144]
[1773470084834,0.12441249,70670.0,70657.0,0.002]
[1773470085350,0.042445,70669.0,70657.0,0.002]
[1773470085539,0.16685749,70669.0,70657.0,0.002]
[1773470085739,0.042443,70672.0,70657.0,0.002]
[1773470085947,0.042443,70672.0,70657.0,0.13595107]
[1773470086341,0.042443,70672.0,70657.0,0.13795107]
[1773470086941,0.11637317,70670.0,70657.0,0.004]
[1773470087246,0.2059087,70670.0,70657.0,0.002]
[1773470088039,0.042445,70669.0,70657.0,0.002]
[1773470088238,0.042445,70669.0,70656.0,0.00144]
[1773470089450,0.042445,70669.0,70657.0,0.00144]
[1773470089647,0.043445,70669.0,70657.0,0.00144]
[1773470089949,0.001,70669.0,70657.0,0.00144]
[1773470090551,0.001,70669.0,70658.0,0.00144]
[1773470091050,0.04244,70678.0,70663.0,0.042448]
[1773470091351,0.042437,70682.0,70667.0,0.042446]
[1773470091550,0.042435,70686.0,70671.0,0.042443]
[1773470091749,0.042436,70684.0,70672.0,0.00144]
[1773470091944,0.042434,70687.0,70672.0,0.00144]
[1773470092144,0.042435,70685.0,70672.0,0.00144]
[1773470092345,0.042437,70683.0,70672.0,0.00144]
[1773470092846,0.002,70686.0,70672.0,0.00144]
[1773470093148,0.044435,70686.0,70673.0,0.14059412]
[1773470093545,0.001,70685.0,70673.0,0.14059412]
[1773470094452,0.042434,70688.0,70673.0,0.14059412]
[1773470094637,0.042434,70688.0,70674.0,0.042441]
[1773470094951,0.042434,70688.0,70675.0,0.042441]
[1773470095552,0.001,70686.0,70675.0,0.042441]
[1773470095747,0.11672225,70690.0,70676.0,0.14059412]
[1773470095950,0.00036108,70690.0,70676.0,0.14059412]
[1773470096146,0.043434,70688.0,70676.0,0.14059412]
[1773470096352,0.04279308,70690.0,70676.0,0.14059412]
[1773470096551,0.042433,70688.0,70676.0,0.14059412]
[1773470096852,0.001,70686.0,70676.0,0.14059412]
[1773470097248,0.042433,70688.0,70676.0,0.14059412]
[1773470097744,0.042433,70688.0,70675.0,0.042441]
[1773470098144,0.043433,70688.0,70675.0,0.042441]
[1773470099750,0.044433,70688.0,70675.0,0.042441]
[1773470100543,0.042434,70686.0,70672.0,0.18482251]
[1773470100740,0.042437,70681.0,70672.0,0.00144]
[1773470101150,0.042437,70681.0,70673.0,0.00144]
[1773470101442,0.042436,70683.0,70673.0,0.00144]
[1773470101646,0.042435,70685.0,70674.0,0.00144]
[1773470101846,0.042436,70684.0,70674.0,0.00144]
[1773470102643,0.042436,70684.0,70667.0,0.00034639]
[1773470102644,0.13429645,70683.0,70675.0,0.00144]
[1773470102844,0.042439,70679.0,70676.0,0.00144]
[1773470103043,0.042439,70679.0,70677.0,0.00144]
[1773470103250,0.042439,70679.0,70678.0,0.00144]
[1773470103452,0.00144,70700.0,70678.0,0.00144]
[1773470103649,0.20822562,70680.0,70665.0,0.00034639]
[1773470103846,0.04244,70677.0,70666.0,0.00144]
[1773470104054,0.042438,70680.0,70669.0,0.00576]
[1773470104245,0.042438,70680.0,70667.0,0.14059412]
[1773470104648,0.042439,70679.0,70667.0,0.14059412]
[1773470104847,0.042439,70679.0,70673.0,0.00576]
[1773470105147,0.04281738,70679.0,70674.0,0.00144]
[1773470106150,0.034839,70679.0,70674.0,0.00144]
[1773470106854,0.00015134,70688.0,70675.0,0.18303512]
[1773470107155,0.042435,70686.0,70677.0,0.14059412]
[1773470108147,0.042433,70688.0,70677.0,0.14059412]
[1773470109147,0.001,70686.0,70677.0,0.14059412]
[1773470109755,0.001,70686.0,70677.0,0.14094051]
[1773470112156,0.001,70686.0,70677.0,0.00034639]
[1773470112357,0.00015134,70685.0,70678.0,0.00144]
[1773470113451,0.043861,70709.0,70678.0,0.00144]
[1773470113452,0.13429645,70702.0,70681.0,0.042437]
[1773470113653,0.04243,70693.0,70681.0,0.18303112]
[1773470114860,0.04343,70693.0,70681.0,0.18303112]
[1773470115964,0.04443,70693.0,70681.0,0.18303112]
[1773470117664,0.002,70693.0,70686.0,0.14059412]
[1773470117859,0.042428,70697.0,70683.0,0.042436]
[1773470118054,0.042428,70697.0,70680.0,0.21452329]
[1773470118055,0.0001475,70698.0,70684.0,0.00144]
[1773470118255,0.0425755,70698.0,70685.0,0.14059412]
[1773470118663,0.042429,70696.0,70685.0,0.14059412]
[1773470119063,0.001,70693.0,70685.0,0.14059412]
[1773470119263,0.20822562,70710.0,70685.0,0.14059412]
[1773470119454,0.20822562,70710.0,70690.0,0.14059412]
[1773470119654,0.07388169,70710.0,70691.0,0.00144]
[1773470119855,0.0001475,70720.0,70702.0,0.14059412]
[1773470120170,0.0001475,70720.0,70704.0,0.14059412]
[1773470120357,0.13429645,70728.0,70704.0,0.14059412]
[1773470120358,0.042411,70725.0,70709.0,0.04242]
[1773470120760,0.042411,70725.0,70711.0,0.042419]
[1773470120954,0.042411,70725.0,70710.0,0.00144]
[1773470121162,0.042411,70725.0,70710.0,0.14203412]
[1773470121669,0.042409,70728.0,70710.0,0.14203412]
[1773470121865,0.00013261,70730.0,70713.0,0.13970647]
[1773470122066,0.04241,70728.0,70714.0,0.042417]
[1773470122267,0.04241,70728.0,70715.0,0.13970647]
[1773470122465,0.04241,70728.0,70716.0,0.14114647]
[1773470122865,0.001,70725.0,70716.0,0.14114647]
[1773470123974,0.04241,70728.0,70716.0,0.14114647]
[1773470125371,0.04341,70728.0,70716.0,0.14114647]
[1773470125571,0.042412,70723.0,70711.0,0.13970647]
[1773470125873,0.042412,70723.0,70712.0,0.00144]
[1773470126773,0.042412,70723.0,70713.0,0.00144]
[1773470127175,0.042412,70723.0,70714.0,0.00144]
[1773470127566,0.042412,70723.0,70712.0,0.002]
[1773470127765,0.042412,70723.0,70713.0,0.00144]
[1773470127968,0.042412,70723.0,70712.0,0.002]
[1773470128167,0.042412,70723.0,70713.0,0.00344]
[1773470128382,0.042412,70723.0,70700.0,0.07445611]
[1773470128383,0.042419,70713.0,70702.0,0.13970647]
[1773470128673,0.042419,70712.0,70703.0,0.00144]
[1773470128873,0.042419,70712.0,70699.0,0.042426]
[1773470129075,0.042419,70712.0,70700.0,0.00144]
[1773470129474,0.042419,70712.0,70701.0,0.00144]
[1773470129666,0.042418,70714.0,70701.0,0.18357147]
[1773470129873,0.042418,70714.0,70702.0,0.13970647]
[1773470130167,0.042418,70714.0,70701.0,0.043865]
[1773470130466,0.042419,70713.0,70701.0,0.00144]
[1773470130669,0.042419,70713.0,70699.0,0.042426]
[1773470130872,0.042419,70712.0,70700.0,0.00144]
[1773470131978,0.001,70713.0,70700.0,0.00144]
[1773470132481,0.043419,70713.0,70700.0,0.00144]
[1773470132980,0.043419,70713.0,70700.0,0.043866]
[1773470133481,0.043419,70713.0,70700.0,0.18357247]
[1773470133780,0.001,70712.0,70700.0,0.18357247]
[1773470134079,0.001,70712.0,70700.0,0.043866]
[1773470134281,0.001,70712.0,70701.0,0.13970647]
[1773470134476,0.043419,70713.0,70701.0,0.13970647]
[1773470134983,0.042417,70716.0,70703.0,0.13970647]
[1773470135383,0.001,70712.0,70703.0,0.13970647]
[1773470135686,0.14194015,70730.0,70701.0,0.13970647]
[1773470135892,0.14194015,70730.0,70708.0,0.042421]
[1773470136078,0.042413,70723.0,70711.0,0.13970647]
[1773470136273,0.042413,70723.0,70713.0,0.13970647]
[1773470136680,0.14180754,70729.0,70713.0,0.00144]
[1773470136984,0.042414,70720.0,70714.0,0.00144]
[1773470137285,0.042414,70720.0,70715.0,0.00144]
[1773470137482,0.042414,70720.0,70716.0,0.00144]
[1773470137783,0.042413,70722.0,70717.0,0.00144]
[1773470137982,0.042413,70722.0,70718.0,0.00144]
[1773470139385,0.042413,70722.0,70719.0,0.00144]
[1773470139587,0.002,70720.0,70711.0,0.13970647]
[1773470139788,0.002,70720.0,70712.0,0.00144]
[1773470140289,0.002,70720.0,70712.0,0.14114647]
[1773470140587,0.002,70720.0,70713.0,0.042418]
[1773470140790,0.002,70720.0,70713.0,0.13970647]
[1773470141480,0.00213261,70722.0,70713.0,0.13970647]
[1773470142179,0.00113261,70722.0,70713.0,0.13970647]
[1773470142380,0.00113261,70722.0,70713.0,0.14170647]
[1773470142687,0.00013261,70722.0,70714.0,0.13970647]
[1773470143087,0.001,70722.0,70714.0,0.13970647]
[1773470144884,0.042412,70724.0,70714.0,0.13970647]
[1773470145788,0.042412,70724.0,70714.0,0.14170647]
[1773470146376,0.042412,70724.0,70714.0,0.13970647]
[1773470146583,0.042412,70724.0,70714.0,0.14170647]
[1773470147488,0.042412,70724.0,70714.0,0.13970647]
[1773470151593,0.042412,70723.0,70714.0,0.13970647]
[1773470153490,0.0007069,70731.0,70714.0,0.13970647]
[1773470154091,0.042413,70723.0,70714.0,0.13970647]
[1773470154593,0.042413,70723.0,70715.0,0.00144]
[1773470156493,0.042413,70723.0,70715.0,0.14328733]
[1773470156698,0.042413,70723.0,70715.0,0.00144]
[1773470156993,0.14298759,70729.0,70711.0,0.16879188]
[1773470157200,0.14298759,70729.0,70712.0,0.00144]
[1773470157799,0.042413,70723.0,70712.0,0.14328733]
[1773470157990,0.042413,70723.0,70712.0,0.14184733]
[1773470158191,0.042413,70723.0,70713.0,0.00144]
[1773470162300,0.042413,70723.0,70713.0,0.14328733]
[1773470163794,0.042411,70725.0,70713.0,0.14328733]
[1773470164305,0.0007069,70731.0,70720.0,0.14184733]
[1773470164600,0.00144,70757.0,70720.0,0.14184733]
[1773470164601,0.14312018,70756.0,70735.0,0.042405]
[1773470164799,0.042398,70747.0,70736.0,0.00144]
[1773470165389,0.042399,70746.0,70736.0,0.00144]
[1773470165688,0.042399,70745.0,70736.0,0.00144]
[1773470167099,0.042399,70745.0,70736.0,0.14328733]
[1773470168307,0.043399,70745.0,70736.0,0.00144]
[1773470174400,0.001,70745.0,70736.0,0.00144]
[1773470174714,0.001,70745.0,70736.0,0.043844]
[1773470174914,0.042407,70732.0,70728.0,8.8e-07]
[1773470175116,0.14298759,70735.0,70729.0,0.0014]
[1773470175299,0.14298759,70735.0,70715.0,0.042416]
[1773470175498,0.14298759,70735.0,70716.0,0.043816]
[1773470175704,0.042409,70729.0,70716.0,0.14324733]
[1773470176111,0.042409,70729.0,70717.0,0.0014]
[1773470176312,0.14298759,70729.0,70702.0,0.14184733]
[1773470176611,0.14298759,70729.0,70706.0,0.042422]